bitfinex/quotes_ETHUSD_20240721
["timestamp","ask_amount","ask_price","bid_price","bid_amount"]
[1721604308650,2.82715,3537.2,3537.0,1.038]
[1721604308856,2.82686,3537.5,3537.0,1.038]
[1721604308857,3.0,3537.1,3537.0,1.038]
[1721604309051,2.82685,3537.5,3537.0,1.038]
[1721604309286,2.82685,3537.5,3537.2,1.038]
[1721604309663,2.82693,3537.4,3537.2,1.038]
[1721604311256,2.82686,3537.5,3537.2,1.038]
[1721604311455,2.82686,3537.5,3537.0,1.038]
[1721604311859,2.82701,3537.4,3537.0,1.038]
[1721604313471,2.82718,3537.1,3536.8,1.038]
[1721604313675,2.82693,3537.4,3536.8,1.038]
[1721604315153,2.82702,3537.3,3536.8,1.038]
[1721604315395,2.82702,3537.3,3537.0,1.038]
[1721604316090,2.82702,3537.3,3536.6,9.729]
[1721604316091,2.82709,3537.2,3536.8,1.038]
[1721604316301,2.82726,3537.0,3536.6,10.767]
[1721604316669,2.82735,3536.9,3536.6,10.767]
[1721604317079,2.82745,3536.8,3536.6,3.467]
[1721604318570,2.82729,3537.0,3536.6,3.467]
[1721604318756,2.82729,3537.0,3536.8,1.038]
[1721604319593,2.82733,3536.9,3536.8,1.038]
[1721604320703,2.82717,3537.1,3536.8,1.038]
[1721604322300,2.82726,3537.0,3536.8,1.038]
[1721604323508,2.8271,3537.2,3536.8,1.038]
[1721604323509,2.82733,3536.9,3536.8,1.038]
[1721604325766,2.82706,3537.3,3536.8,1.038]
[1721604325981,2.82706,3537.3,3537.2,2.2722]
[1721604327982,2.82687,3537.5,3537.2,2.2722]
[1721604328295,0.29508392,3537.5,3537.2,3.3102]
[1721604328487,2.827,3537.4,3537.2,3.3102]
[1721604328689,2.82701,3537.3,3537.2,3.3102]
[1721604328996,2.82701,3537.3,3537.2,2.2722]
[1721604331315,3.29508392,3537.5,3537.2,3.3102]
[1721604331519,3.12677,3537.7,3537.4,1.038]
[1721604331520,2.82677,3537.7,3537.4,1.038]
[1721604331786,2.82677,3537.7,3537.6,1.038]
[1721604331980,5.82677,3537.7,3537.6,1.038]
[1721604335310,2.82679,3537.6,3537.4,1.038]
[1721604335600,2.82686,3537.5,3537.2,3.3102]
[1721604335840,2.82701,3537.3,3537.2,2.2722]
[1721604336444,5.65402,3537.3,3537.2,2.2722]
[1721604336648,2.82725,3537.0,3536.9,7.3]
[1721604338437,5.6545,3537.0,3536.9,7.3]
[1721604339160,5.65482,3536.8,3536.7,2.4256]
[1721604340203,2.82772,3536.5,3536.4,2.3663]
[1721604342214,5.65544,3536.5,3536.4,2.3663]
[1721604342419,3.0,3537.2,3536.1,8.338]
[1721604342643,2.82789,3536.2,3536.1,8.338]
[1721604344020,2.82789,3536.2,3536.1,1.038]
[1721604345651,2.82789,3536.2,3536.0,2.3663]
[1721604348409,2.82797,3536.1,3536.0,2.3663]
[1721604350630,2.82742,3536.8,3535.7,2.4009]
[1721604350843,3.9,3536.7,3535.7,2.4009]
[1721604351063,4.194993,3536.7,3535.7,2.4009]
[1721604351924,2.82828,3535.8,3535.7,2.4009]
[1721604353618,5.65656,3535.8,3535.7,2.4009]
[1721604354055,2.82828,3535.8,3535.7,3.4389]
[1721604354217,2.82828,3535.8,3535.7,5.75579]
[1721604354614,2.82807,3536.0,3535.7,5.75579]
[1721604354818,2.82798,3536.1,3536.0,2.4767]
[1721604355731,3.294993,3536.7,3536.0,2.4767]
[1721604355932,2.82791,3536.2,3536.0,3.5147]
[1721604356120,2.82791,3536.2,3536.0,4.59617]
[1721604356316,2.82793,3536.2,3536.0,4.59617]
[1721604356819,2.82797,3536.1,3536.0,2.4767]
[1721604357388,5.65594,3536.1,3536.0,2.4767]
[1721604360335,2.82821,3535.8,3535.7,9.7057]
[1721604360537,2.82821,3535.8,3535.7,2.4057]
[1721604361339,2.82821,3535.8,3535.7,3.4437]
[1721604361554,2.82807,3536.0,3535.7,3.4437]
[1721604361849,2.82814,3535.9,3535.7,3.4437]
[1721604362477,2.82814,3535.9,3535.7,3.78807]
[1721604362650,2.82801,3536.1,3535.7,3.78807]
[1721604362973,2.82774,3536.4,3536.1,2.4829]
[1721604363745,2.8279,3536.2,3536.1,2.4829]
[1721604366379,2.82805,3536.1,3535.8,2.4685]
[1721604366578,2.82808,3536.0,3535.8,2.4685]
[1721604366761,2.82808,3536.0,3535.8,3.5065]
[1721604367449,5.65619,3536.0,3535.8,3.5065]
[1721604367773,2.82798,3536.1,3535.8,3.5065]
[1721604368161,2.82798,3536.1,3535.8,4.58715]
[1721604368365,2.82798,3536.1,3536.0,1.038]
[1721604369236,2.82798,3536.1,3535.8,3.5065]
[1721604371678,5.82761,3536.6,3536.0,1.038]
[1721604371892,3.0,3536.6,3536.2,1.038]
[1721604372038,2.82779,3536.4,3536.2,1.038]
[1721604372238,2.82781,3536.3,3536.2,1.038]
[1721604372937,5.82767,3536.5,3536.2,1.038]
[1721604373199,3.0,3536.5,3536.1,2.4896]
[1721604373343,2.82781,3536.3,3536.1,2.4896]
[1721604373765,3.0,3536.5,3536.1,2.4896]
[1721604373766,5.82769,3536.5,3536.1,2.4896]
[1721604374063,2.82773,3536.4,3536.2,1.038]
[1721604375471,2.82773,3536.4,3536.1,2.4896]
[1721604376001,3.0,3536.5,3536.1,2.4896]
[1721604376002,2.82781,3536.3,3536.1,2.4896]
[1721604376564,2.82789,3536.2,3536.1,2.4896]
[1721604377981,2.82782,3536.3,3536.1,2.4896]
[1721604378677,5.8277,3536.5,3536.1,2.4896]
[1721604380093,3.0,3536.5,3536.1,2.4896]
[1721604380414,3.122493,3536.7,3536.1,2.4896]
[1721604380415,0.294993,3536.7,3536.4,1.038]
[1721604380567,2.8275,3536.7,3536.4,1.038]
[1721604381064,2.82726,3537.0,3536.4,1.038]
[1721604381586,2.82726,3537.0,3536.6,1.038]
[1721604381886,2.82748,3536.8,3536.6,1.038]
[1721604382101,2.82752,3536.7,3536.4,1.038]
[1721604383395,2.82733,3536.9,3536.5,2.4887]
[1721604383703,2.82719,3537.1,3536.6,1.038]
[1721604383905,2.82709,3537.2,3536.8,1.038]
[1721604384108,2.82717,3537.1,3536.9,2.4887]
[1721604384408,2.82725,3537.0,3536.9,2.4887]
[1721604385905,2.82725,3537.0,3536.5,2.3728]
[1721604386336,2.82749,3536.8,3536.5,2.3728]
[1721604386713,5.65514,3536.6,3536.5,2.3728]
[1721604387111,2.82757,3536.6,3536.5,2.3728]
[1721604388299,3.0,3537.5,3536.6,2.3902]
[1721604388503,3.0,3537.5,3536.5,2.00528]
[1721604388504,2.82708,3537.3,3537.0,2.4323]
[1721604389031,3.0,3537.2,3537.0,2.4323]
[1721604389617,5.82711,3537.2,3537.0,2.4323]
[1721604390351,2.82717,3537.1,3537.0,2.4323]
[1721604391200,2.82726,3537.0,3536.6,2.386]
[1721604391630,0.865421,3537.1,3536.6,2.386]
[1721604391631,2.82747,3536.8,3536.6,2.386]
[1721604392941,2.82726,3537.0,3536.6,2.386]
[1721604393522,2.82738,3536.9,3536.6,2.386]
[1721604394446,2.82742,3536.8,3536.6,2.386]
[1721604394746,2.8273,3537.0,3536.7,2.2755]
[1721604395110,5.82711,3537.2,3536.7,2.2755]
[1721604395111,2.82741,3536.8,3536.7,2.2755]
[1721604403280,2.82735,3536.9,3536.3,7.3]
[1721604403281,2.8277,3536.5,3536.4,2.2881]
[1721604403441,5.6554,3536.5,3536.4,2.2881]
[1721604406549,5.65546,3536.4,3536.3,7.3]
[1721604406846,2.82789,3536.2,3536.1,2.3959]
[1721604408466,5.65578,3536.2,3536.1,2.3959]
[1721604412168,2.82789,3536.2,3536.1,3.4339]
[1721604412372,2.82782,3536.3,3536.1,3.4339]
[1721604413644,2.82766,3536.5,3536.2,2.3006]
[1721604413843,5.82707,3537.3,3536.5,2.4426]
[1721604413844,2.82753,3536.7,3536.5,2.4426]
[1721604414571,2.82757,3536.6,3536.5,2.4426]
[1721604421865,2.82735,3536.9,3536.5,2.4426]
[1721604422050,3.0,3536.8,3536.5,2.4426]
[1721604423288,2.8275,3536.7,3536.5,2.4426]
[1721604427160,3.0,3536.8,3536.5,2.4426]
[1721604427389,2.82741,3536.8,3536.5,2.4426]
[1721604427699,3.0,3536.7,3536.5,2.4426]
[1721604429570,5.8275,3536.7,3536.5,2.4426]
[1721604429973,2.82757,3536.6,3536.5,2.4426]
[1721604431601,5.65514,3536.6,3536.5,2.4426]
[1721604431803,2.8279,3536.2,3535.9,2.2932]
[1721604432975,2.82778,3536.4,3535.9,2.2932]
[1721604433420,2.82782,3536.3,3535.9,2.2932]
[1721604433787,2.8279,3536.2,3535.9,2.2932]
[1721604434615,2.82805,3536.0,3535.9,2.2932]
[1721604435417,3.12762,3536.6,3535.7,7.3]
[1721604435418,5.65642,3535.8,3535.7,7.3]
[1721604439607,2.8285,3535.5,3535.3,2.4966]
[1721604441741,2.82814,3535.9,3535.4,1.038]
[1721604442019,2.82803,3536.1,3535.8,1.038]
[1721604442512,2.82814,3535.9,3535.7,2.4523]
[1721604447815,3.0,3536.5,3535.2,0.15312118]
[1721604448049,2.82853,3535.4,3535.3,2.3105]
[1721604448221,2.8284,3535.6,3535.3,2.3105]
[1721604448424,2.8284,3535.6,3535.4,1.038]
[1721604448609,2.8284,3535.6,3535.5,2.389]
[1721604449706,2.82822,3535.8,3535.5,2.389]
[1721604449902,2.8283,3535.7,3535.5,2.389]
[1721604452954,2.82837,3535.6,3535.5,2.389]
[1721604453522,5.65674,3535.6,3535.5,2.389]
[1721604455230,2.82857,3535.4,3535.2,2.55282118]
[1721604457955,2.82861,3535.3,3535.2,2.55282118]
[1721604460843,5.65722,3535.3,3535.2,2.55282118]
[1721604462357,5.65722,3535.3,3535.2,0.15312118]
[1721604464873,6.222942,3535.3,3535.2,0.15312118]
[1721604468946,16.449062,3535.3,3535.2,0.15312118]
[1721604469146,17.29371351,3535.3,3535.2,0.15312118]
[1721604469346,17.64371351,3535.3,3535.2,0.15312118]
[1721604470656,14.81510351,3535.3,3535.2,0.15312118]
[1721604476093,13.24620351,3535.3,3535.2,0.15312118]
[1721604477051,13.96962755,3535.3,3535.2,0.15312118]
[1721604481876,7.74668555,3535.3,3535.2,0.15312118]
[1721604482193,6.38064404,3535.3,3535.2,2.60702118]
[1721604483288,5.65722,3535.3,3535.2,0.15312118]
[1721604483491,9.38048044,3535.3,3535.2,0.15312118]
[1721604484082,11.15137248,3535.3,3535.2,0.15312118]
[1721604484607,11.50137248,3535.3,3535.2,0.15312118]
[1721604486898,10.60137248,3535.3,3535.2,0.15312118]
[1721604487209,9.38048044,3535.3,3535.2,0.15312118]
[1721604489005,6.55187044,3535.3,3535.2,0.15312118]
[1721604489311,6.55187044,3535.3,3535.2,2.54312118]
[1721604490901,9.38048044,3535.3,3535.2,2.54312118]
[1721604491105,6.55187044,3535.3,3535.2,2.54312118]
[1721604492624,9.38048044,3535.3,3535.2,2.54312118]
[1721604492805,6.55187044,3535.3,3535.2,2.54312118]
[1721604495194,3.72326044,3535.3,3535.2,2.54312118]
[1721604495579,0.72326044,3535.3,3535.2,2.54312118]
[1721604496015,3.55187044,3535.3,3535.2,2.54312118]
[1721604496211,6.55187044,3535.3,3535.2,2.54312118]
[1721604502004,3.72326044,3535.3,3535.2,2.54312118]
[1721604502214,0.72326044,3535.3,3535.2,2.54312118]
[1721604504425,3.55187044,3535.3,3535.2,2.54312118]
[1721604504627,6.55187044,3535.3,3535.2,2.54312118]
[1721604507958,7.87259608,3535.3,3535.2,2.54312118]
[1721604510873,3.72326044,3535.3,3535.2,2.54312118]
[1721604511410,0.72326044,3535.3,3535.2,2.54312118]
[1721604511622,3.72326044,3535.3,3535.2,2.54312118]
[1721604515963,6.55187044,3535.3,3535.2,2.54312118]
[1721604516169,3.55187044,3535.3,3535.2,2.54312118]
[1721604516379,6.55187044,3535.3,3535.2,2.54312118]
[1721604517467,6.35687131,3535.3,3535.2,2.54312118]
[1721604518972,10.10401344,3535.3,3535.2,0.15312118]
[1721604523774,7.27540344,3535.3,3535.2,0.15312118]
[1721604523982,6.35687131,3535.3,3535.2,2.51252118]
[1721604524347,9.18548131,3535.3,3535.2,2.51252118]
[1721604527591,6.35687131,3535.3,3535.2,2.51252118]
[1721604527746,9.18548131,3535.3,3535.2,2.51252118]
[1721604528657,6.35687131,3535.3,3535.2,2.51252118]
[1721604530329,6.35687131,3535.3,3535.2,0.15312118]
[1721604530330,12.93263544,3535.3,3535.2,0.15312118]
[1721604530453,12.93263544,3535.3,3535.2,1.18e-06]
[1721604530454,15.69552894,3535.3,3535.2,1.18e-06]
[1721604530649,14.12662894,3535.3,3535.2,1.18e-06]
[1721604534849,13.70633715,3535.3,3535.2,1.18e-06]
[1721604535288,13.70633722,3535.3,3535.2,1.18e-06]
[1721604537205,13.59836763,3535.3,3535.2,1.18e-06]
[1721604540779,10.21975763,3535.3,3535.2,2.38820118]
[1721604540978,8.9512135,3535.3,3535.2,2.38820118]
[1721604541285,8.65722,3535.3,3535.2,2.38820118]
[1721604549520,8.65722,3535.3,3535.2,1.18e-06]
[1721604556338,8.65722,3535.3,3535.2,2.25560118]
[1721604556658,5.82861,3535.3,3535.2,2.25560118]
[1721604556941,3.0,3535.3,3535.2,2.25560118]
[1721604557106,2.82861,3535.3,3535.2,2.25560118]
[1721604557315,5.82861,3535.3,3535.2,2.25560118]
[1721604560534,8.65722,3535.3,3535.2,2.25560118]
[1721604561042,9.522942,3535.3,3535.2,2.25560118]
[1721604561537,8.65722,3535.3,3535.2,2.25560118]
[1721604561745,5.82861,3535.3,3535.2,2.25560118]
[1721604562352,8.65722,3535.3,3535.2,2.25560118]
[1721604568626,8.65722,3535.3,3535.2,1.18e-06]
[1721604569455,9.00722,3535.3,3535.2,1.18e-06]
[1721604569756,10.190795,3535.3,3535.2,1.18e-06]
[1721604570933,9.840795,3535.3,3535.2,1.18e-06]
[1721604571143,5.82861,3535.3,3535.2,2.49840118]
[1721604573319,8.65722,3535.3,3535.2,2.49840118]
[1721604573522,5.82861,3535.3,3535.2,2.49840118]
[1721604574901,8.65722,3535.3,3535.2,2.49840118]
[1721604575039,9.522942,3535.3,3535.2,2.49840118]
[1721604575443,9.522942,3535.3,3535.2,1.18e-06]
[1721604576083,6.694332,3535.3,3535.2,1.18e-06]
[1721604576381,8.65722,3535.3,3535.2,1.18e-06]
[1721604577078,5.82861,3535.3,3535.2,1.18e-06]
[1721604577860,8.65722,3535.3,3535.2,1.18e-06]
[1721604579585,5.82861,3535.3,3535.2,1.18e-06]
[1721604579884,8.65722,3535.3,3535.2,1.18e-06]
[1721604580046,5.82861,3535.3,3535.2,1.18e-06]
[1721604580642,8.65722,3535.3,3535.2,1.18e-06]
[1721604581049,5.82861,3535.3,3535.2,1.18e-06]
[1721604582931,5.82861,3535.3,3535.2,2.46190118]
[1721604589815,8.65722,3535.3,3535.2,2.46190118]
[1721604590130,9.522942,3535.3,3535.2,2.46190118]
[1721604598425,8.65722,3535.3,3535.2,2.46190118]
[1721604602813,3.0,3535.3,3535.2,2.46190118]
[1721604603404,2.82847,3535.5,3535.2,2.46190118]
[1721604603638,3.44366044,3535.6,3535.2,2.46190118]
[1721604603639,5.82853,3535.4,3535.2,2.46190118]
[1721604603946,2.82853,3535.4,3535.2,2.46190118]
[1721604604618,6.27208044,3535.6,3535.2,2.46190118]
[1721604604820,2.82846,3535.5,3535.2,2.46190118]
[1721604605020,3.0,3535.6,3535.2,2.46190118]
[1721604605241,0.35,3535.9,3535.6,2.3378]
[1721604605472,2.82798,3536.1,3535.6,2.3378]
[1721604605764,2.82798,3536.1,3535.8,2.3378]
[1721604606928,3.0,3536.0,3535.8,2.3378]
[1721604608528,5.82795,3536.2,3535.8,2.3378]
[1721604609972,5.82795,3536.2,3535.2,3.1786713]
[1721604609973,2.8271,3537.2,3536.3,2.82781]
[1721604610187,3.27043148,3537.5,3536.8,2.3749]
[1721604610188,2.82696,3537.4,3536.8,2.3749]
[1721604610333,2.82701,3537.3,3536.8,2.3749]
[1721604610534,2.82712,3537.2,3536.8,2.3749]
[1721604610874,2.82717,3537.1,3536.8,2.3749]
[1721604612448,2.82733,3536.9,3536.8,2.3749]
[1721604614557,2.82758,3536.6,3536.2,2.3875]
[1721604614940,2.82766,3536.5,3536.2,2.3875]
[1721604616466,5.65562,3536.3,3536.2,2.3875]
[1721604616665,3.0,3536.4,3535.8,2.3875]
[1721604616877,2.82813,3535.9,3535.8,2.3875]
[1721604619843,2.82797,3536.1,3535.8,2.3875]
[1721604620065,2.82792,3536.2,3535.8,2.3875]
[1721604620256,2.82774,3536.4,3535.8,2.3875]
[1721604620465,3.0,3536.3,3535.8,2.3875]
[1721604620666,3.0,3536.3,3535.9,0.96875]
[1721604621247,5.82782,3536.3,3535.9,0.96875]
[1721604621450,5.82782,3536.3,3535.8,2.3875]
[1721604623055,3.0,3536.3,3535.8,2.3875]
[1721604625174,2.82761,3536.6,3535.8,2.3875]
[1721604625377,2.82761,3536.6,3535.7,7.3]
[1721604625378,2.82744,3536.8,3536.0,2.48]
[1721604625552,2.82755,3536.7,3536.1,2.48]
[1721604627990,2.82758,3536.6,3536.1,2.48]
[1721604628196,2.82749,3536.7,3536.1,2.48]
[1721604628391,2.82775,3536.4,3536.1,2.48]
[1721604629182,5.65578,3536.2,3536.1,2.48]
[1721604629393,2.82754,3536.7,3535.8,2.316]
[1721604629394,2.82821,3535.9,3535.8,2.316]
[1721604630710,2.82805,3536.0,3535.8,2.316]
[1721604632706,2.82813,3535.9,3535.8,2.316]
[1721604636519,2.82825,3535.8,3535.3,2.316]
[1721604636675,2.82845,3535.5,3535.3,2.316]
[1721604637577,2.82831,3535.7,3535.3,2.316]
[1721604640720,2.82815,3535.9,3535.3,2.316]
[1721604640874,2.82823,3535.8,3535.5,2.3413]
[1721604642221,2.82805,3536.0,3535.5,2.3413]
[1721604648250,2.82798,3536.1,3535.5,2.3413]
[1721604648550,2.82809,3536.0,3535.5,2.3413]
[1721604648708,2.82809,3536.0,3535.7,2.2921]
[1721604651617,2.82819,3535.9,3535.7,2.2921]
[1721604651969,5.65642,3535.8,3535.7,2.2921]
[1721604653265,5.65642,3535.8,3535.1,1.038]
[1721604653266,2.82833,3535.7,3535.2,2.3783]
[1721604653860,2.82819,3535.9,3535.2,2.3783]
[1721604654155,2.82823,3535.8,3535.4,2.3783]
[1721604656617,2.82805,3536.0,3535.4,2.3783]
[1721604657261,2.82805,3536.0,3535.5,1.038]
[1721604657459,2.82805,3536.0,3535.6,2.4003]
[1721604658677,2.82805,3536.0,3535.6,2.778293]
[1721604658892,2.82815,3535.9,3535.6,2.778293]
[1721604660550,2.82815,3535.9,3535.6,2.4003]
[1721604662479,2.82797,3536.1,3535.6,2.4003]
[1721604662853,2.82807,3536.0,3535.6,2.4003]
[1721604663496,2.82782,3536.3,3535.6,2.4003]
[1721604663645,3.0,3536.2,3535.6,2.4003]
[1721604663844,3.0,3536.2,3535.8,2.4054]
[1721604664457,5.82792,3536.2,3535.8,2.4054]
[1721604667602,2.82809,3536.0,3535.8,2.4054]
[1721604667744,2.82813,3535.9,3535.4,2.3058]
[1721604667945,2.82799,3536.1,3535.4,2.3058]
[1721604667946,2.82813,3536.0,3535.4,2.3058]
[1721604668156,3.17813,3536.0,3535.4,2.3058]
[1721604668445,3.47374353,3536.0,3535.4,2.3058]
[1721604668808,3.12374353,3536.0,3535.4,2.3058]
[1721604668959,0.29561353,3536.0,3535.4,1.347256]
[1721604669144,0.29561353,3536.0,3535.6,2.2752]
[1721604677291,5.82796,3536.2,3536.1,2.3002]
[1721604677292,3.0,3536.2,3536.1,2.3002]
[1721604677596,4.39572,3537.6,3536.2,2.4372]
[1721604677597,0.35,3536.6,3536.2,2.4372]
[1721604678391,3.0,3536.7,3536.2,2.4372]
[1721604678702,3.35,3536.7,3536.2,2.4372]
[1721604679481,3.0,3536.6,3536.2,2.4372]
[1721604679684,0.35,3536.7,3536.2,0.630323]
[1721604679901,0.35,3536.7,3536.3,2.4267]
[1721604680200,1.9575531,3538.8,3536.3,2.4267]
[1721604680201,0.73932281,3537.5,3536.3,2.4267]
[1721604680352,2.82711,3537.2,3536.3,2.4267]
[1721604680553,3.12248843,3537.4,3536.4,2.82773]
[1721604680862,3.12248843,3537.4,3536.6,2.4267]
[1721604680998,0.64555843,3537.4,3536.7,0.05654394]
[1721604681320,0.64555843,3537.4,3536.8,2.294]
[1721604681908,0.64555843,3537.4,3536.9,2.294]
[1721604682208,2.82702,3537.3,3536.9,2.294]
[1721604682616,0.29555843,3537.4,3536.9,2.294]
[1721604682912,0.29555843,3537.4,3536.3,2.294]
[1721604682913,2.82747,3536.8,3536.3,2.294]
[1721604683123,2.8276,3536.6,3536.3,3.2534]
[1721604683414,2.8276,3536.6,3536.3,2.294]
[1721604683801,2.82751,3536.7,3536.3,2.294]
[1721604684269,2.82759,3536.6,3536.3,2.294]
[1721604685509,2.82742,3536.8,3536.3,2.294]
[1721604685510,2.82765,3536.5,3536.3,2.294]
[1721604686795,2.8276,3536.6,3536.3,2.294]
[1721604687212,2.82772,3536.5,3536.3,2.294]
[1721604688989,2.82773,3536.4,3536.3,2.294]
[1721604690940,2.82773,3536.4,3535.8,7.3]
[1721604690941,0.59504085,3536.4,3535.9,2.3824]
[1721604691095,5.6561,3536.0,3535.9,2.3824]
[1721604693604,5.65626,3535.9,3535.8,7.3]
[1721604694111,8.65626,3535.9,3535.8,7.3]
[1721604695296,2.82828,3535.8,3535.6,2.3824]
[1721604695536,3.0,3535.9,3535.6,2.3824]
[1721604695742,2.82829,3535.7,3535.6,2.3824]
[1721604703954,2.82846,3535.5,3535.1,2.2572]
[1721604704153,2.82846,3535.5,3535.1,3.21292]
[1721604706860,2.82855,3535.4,3535.1,3.21292]
[1721604707473,2.82855,3535.4,3535.1,2.2572]
[1721604709899,6.17815,3535.9,3535.1,2.2572]
[1721604710045,5.82815,3535.9,3535.1,2.2572]
[1721604710370,6.12357408,3535.9,3535.1,2.2572]
[1721604710889,2.82835,3535.7,3535.1,2.2572]
[1721604711050,2.82837,3535.6,3535.3,2.4059]
[1721604711391,6.12357408,3535.9,3535.3,2.4059]
[1721604711593,2.82844,3535.6,3535.3,2.4059]
[1721604712494,2.82822,3535.8,3535.3,2.4059]
[1721604713052,3.29542408,3535.9,3535.7,2.3107]
[1721604713282,0.29542408,3535.9,3535.8,2.64557]
[1721604713520,2.82781,3536.3,3535.8,2.64557]
[1721604713648,3.0,3536.2,3535.8,2.3107]
[1721604714265,2.82803,3536.1,3535.8,2.3107]
[1721604714600,5.82807,3536.0,3535.8,2.3107]
[1721604716790,2.82813,3535.9,3535.8,2.3107]
[1721604716997,5.82813,3535.9,3535.8,2.3107]
[1721604717571,8.65626,3535.9,3535.8,2.3107]
[1721604717876,8.65626,3535.9,3535.1,7.3]
[1721604717877,2.82836,3535.7,3535.2,2.2644]
[1721604718082,2.82838,3535.6,3535.2,2.2644]
[1721604718601,2.82824,3535.8,3535.2,2.2644]
[1721604721467,5.82813,3535.9,3535.2,2.2644]
[1721604721468,2.8283,3535.7,3535.2,2.2644]
[1721604721696,2.8283,3535.7,3535.2,3.607531]
[1721604721875,5.82813,3535.9,3535.3,2.2853]
[1721604724521,3.0,3535.9,3535.6,1.038]
[1721604724670,3.0,3535.9,3535.7,2.74908]
[1721604724880,2.82791,3536.2,3535.7,2.74908]
[1721604725119,3.0,3536.1,3535.7,2.74908]
[1721604726495,5.82803,3536.1,3535.7,2.74908]
[1721604726695,2.82805,3536.0,3535.7,2.4048]
[1721604727020,3.0,3535.9,3535.7,2.4048]
[1721604727410,5.82814,3535.9,3535.7,2.4048]
[1721604727574,3.0,3535.9,3535.7,2.4048]
[1721604727780,3.0,3536.0,3535.7,2.4048]
[1721604729520,2.82732,3537.0,3535.7,2.74908]
[1721604729727,0.35,3536.5,3535.9,2.4048]
[1721604730024,0.29527785,3536.9,3535.9,2.4048]
[1721604730232,0.35,3536.6,3536.1,2.4048]
[1721604730376,0.35,3536.6,3536.2,1.038]
[1721604730577,0.29527785,3536.9,3536.4,3.4428]
[1721604730809,0.29527785,3536.9,3536.7,2.4048]
[1721604731019,2.82709,3537.2,3536.7,2.4048]
[1721604732423,3.0,3537.1,3536.7,2.4048]
[1721604733413,2.82725,3537.0,3536.7,2.4048]
[1721604736127,3.0,3537.1,3536.7,2.4048]
[1721604737418,5.82719,3537.1,3536.7,2.4048]
[1721604738091,2.82733,3536.9,3536.7,2.4048]
[1721604738288,2.82759,3536.6,3536.2,2.2773]
[1721604739726,2.82751,3536.7,3536.2,2.2773]
[1721604740611,2.82758,3536.6,3536.2,2.2773]
[1721604740790,2.82758,3536.6,3536.2,2.60883]
[1721604741415,0.29536004,3537.0,3536.2,2.2773]
[1721604741586,2.82766,3536.5,3536.2,2.2773]
[1721604741992,2.82749,3536.7,3536.2,2.2773]
[1721604742304,2.82771,3536.5,3536.2,2.2773]
[1721604742925,2.82781,3536.3,3536.2,2.2773]
[1721604743090,2.82812,3536.0,3535.8,2.3911]
[1721604743296,2.82757,3536.6,3535.8,2.3911]
[1721604743590,0.35,3536.4,3535.8,2.3911]
[1721604744226,2.82811,3536.0,3535.8,2.3911]
[1721604744531,2.8279,3536.2,3535.8,2.3911]
[1721604744889,2.82783,3536.3,3535.8,2.3911]
[1721604745403,2.8279,3536.2,3535.8,2.3911]
[1721604746223,2.82797,3536.2,3535.8,2.3911]
[1721604746734,2.82799,3536.1,3535.8,2.3911]
[1721604748133,2.82813,3535.9,3535.8,2.3911]
[1721604753583,2.82774,3536.4,3535.8,2.63021]
[1721604753848,2.82737,3536.9,3536.0,2.2976]
[1721604754050,3.0,3536.8,3536.1,2.2976]
[1721604754263,3.0,3536.8,3536.3,2.2976]
[1721604754430,2.82723,3537.1,3536.3,2.2976]
[1721604755537,2.82727,3537.0,3536.3,2.2976]
[1721604757365,2.8271,3537.2,3536.4,2.2956]
[1721604758217,2.82719,3537.1,3536.4,2.2956]
[1721604758454,2.82719,3537.1,3536.5,3.0240965]
[1721604764557,2.82726,3537.0,3536.5,3.0240965]
[1721604769264,2.82726,3537.0,3536.5,2.4605]
[1721604775747,2.82733,3536.9,3536.5,2.4605]
[1721604776057,2.82757,3536.6,3536.5,2.4605]
[1721604777254,2.8275,3536.7,3535.9,2.3472]
[1721604777255,2.82765,3536.5,3535.9,2.3472]
[1721604777568,2.82773,3536.4,3535.9,2.3472]
[1721604777762,2.82773,3536.4,3535.9,2.598348]
[1721604777976,2.82773,3536.4,3536.0,2.3472]
[1721604782978,0.29527974,3536.9,3536.0,2.3472]
[1721604783208,2.82797,3536.1,3536.0,2.3472]
[1721604786217,2.82813,3535.9,3535.5,2.4324]
[1721604786406,2.82835,3535.7,3535.5,2.4324]
[1721604789338,2.82806,3536.0,3535.5,2.4324]
[1721604789517,2.82794,3536.2,3535.5,2.4324]
[1721604789724,2.82784,3536.3,3535.2,2.82862]
[1721604789725,2.82806,3536.0,3535.7,2.3174]
[1721604791236,3.12334186,3536.2,3535.7,2.3174]
[1721604791445,3.12334186,3536.2,3534.9,7.3]
[1721604791446,0.29540186,3536.2,3535.9,2.4527]
[1721604791606,2.8278,3536.4,3535.9,2.4527]
[1721604791607,3.0,3536.3,3535.9,2.4527]
[1721604791811,3.0,3536.3,3536.1,2.4527]
[1721604793094,2.8278,3536.4,3536.1,2.4527]
[1721604793095,2.8275,3536.7,3536.1,2.4527]
[1721604793296,3.0,3536.6,3536.1,2.4527]
[1721604793497,5.82764,3536.6,3536.1,2.4527]
[1721604793703,2.82781,3536.4,3536.1,2.4527]
[1721604795686,2.82789,3536.2,3536.1,2.4527]
[1721604795853,2.82819,3535.9,3535.8,2.4352]
[1721604796377,2.82798,3536.1,3535.8,2.4352]
[1721604796585,2.82782,3536.3,3535.8,2.4352]
[1721604796586,2.82807,3536.0,3535.8,2.4352]
[1721604797484,2.82794,3536.2,3535.8,2.4352]
[1721604802282,2.82797,3536.1,3535.8,2.4352]